[Event "*** SCC Grand Prix: Titled Tuesday Blitz"]
[Site "Chess.com"]
[Date "2020.10.06"]
[Round "5"]
[White "Shankovskyi"]
[Black "dominikaf"]
[Result "1-0"]
[WhiteElo "2471"]
[BlackElo "2268"]
[TimeControl "180+1"]
[EndTime "10:56:34 PDT"]
[Termination "Shankovskyi won by resignation"]

1. e4 {[%clk 0:03:00]} 1... e5 {[%clk 0:02:59.2]} 2. Nf3 {[%clk 0:02:58.9]} 2...
Nc6 {[%clk 0:02:59.2]} 3. Bc4 {[%clk 0:02:58.4]} 3... Nf6 {[%clk 0:02:58.5]} 4.
Ng5 {[%clk 0:02:57.7]} 4... d5 {[%clk 0:02:58.1]} 5. exd5 {[%clk 0:02:58.6]}
5... Nd4 {[%clk 0:02:57]} 6. c3 {[%clk 0:02:57.4]} 6... b5 {[%clk 0:02:57.4]} 7.
Bf1 {[%clk 0:02:57.9]} 7... Nxd5 {[%clk 0:02:57.5]} 8. cxd4 {[%clk 0:02:50]}
8... Qxg5 {[%clk 0:02:52.3]} 9. Bxb5+ {[%clk 0:02:49.9]} 9... Kd8 {[%clk
0:02:52.6]} 10. Qf3 {[%clk 0:02:50]} 10... Bb7 {[%clk 0:02:41.8]} 11. Nc3 {[%clk
0:02:43.2]} 11... c6 {[%clk 0:02:09]} 12. Bc4 {[%clk 0:02:27.7]} 12... exd4
{[%clk 0:01:58]} 13. Nxd5 {[%clk 0:01:59.6]} 13... cxd5 {[%clk 0:01:57.2]} 14.
Bb5 {[%clk 0:01:59.3]} 14... Bd6 {[%clk 0:01:45.6]} 15. O-O {[%clk 0:01:51.4]}
15... Qf4 {[%clk 0:01:41.9]} 16. Qh3 {[%clk 0:01:45.2]} 16... Bc8 {[%clk
0:01:29.2]} 17. Qg3 {[%clk 0:01:45]} 17... Qxg3 {[%clk 0:01:01.6]} 18. hxg3
{[%clk 0:01:45.8]} 18... Bd7 {[%clk 0:01:00.2]} 19. Ba6 {[%clk 0:01:25.9]} 19...
Kc7 {[%clk 0:00:49]} 20. b3 {[%clk 0:01:22.9]} 20... Kb6 {[%clk 0:00:43.3]} 21.
Bd3 {[%clk 0:01:22.7]} 21... Be5 {[%clk 0:00:34.7]} 22. Re1 {[%clk 0:01:21.9]}
22... Bf6 {[%clk 0:00:34.2]} 23. Ba3 {[%clk 0:01:17.5]} 23... Rhe8 {[%clk
0:00:30.6]} 24. Rac1 {[%clk 0:01:14.1]} 24... Rxe1+ {[%clk 0:00:29.8]} 25. Rxe1
{[%clk 0:01:15]} 25... h6 {[%clk 0:00:22.4]} 26. Kf1 {[%clk 0:01:14.7]} 26...
Re8 {[%clk 0:00:21.1]} 27. Rc1 {[%clk 0:01:14.5]} 27... Rc8 {[%clk 0:00:20.6]}
28. Rxc8 {[%clk 0:01:14.2]} 28... Bxc8 {[%clk 0:00:20.8]} 29. Ke2 {[%clk
0:01:15]} 29... Bg4+ {[%clk 0:00:19.3]} 30. f3 {[%clk 0:01:14.8]} 30... Bd7
{[%clk 0:00:19.3]} 31. g4 {[%clk 0:01:15.3]} 31... Kc6 {[%clk 0:00:16]} 32. Bf8
{[%clk 0:01:15.6]} 32... Kc7 {[%clk 0:00:14.5]} 33. a4 {[%clk 0:01:15.4]} 33...
Kd8 {[%clk 0:00:14.6]} 34. Bc5 {[%clk 0:01:13]} 34... Kc7 {[%clk 0:00:04.6]} 35.
Bxa7 {[%clk 0:01:12.3]} 35... Kb7 {[%clk 0:00:04.1]} 36. Bc5 {[%clk 0:01:11.9]}
36... Kc6 {[%clk 0:00:04.5]} 37. Bf8 {[%clk 0:01:11.4]} 37... Bc8 {[%clk
0:00:03.1]} 38. b4 {[%clk 0:01:08.5]} 38... Bb7 {[%clk 0:00:01.9]} 39. Bb5+
{[%clk 0:01:08]} 39... Kb6 {[%clk 0:00:02.1]} 40. Kd3 {[%clk 0:01:08.9]} 40...
Bc6 {[%clk 0:00:02.2]} 41. Bxc6 {[%clk 0:01:08.9]} 41... Kxc6 {[%clk 0:00:03.1]}
42. Bc5 {[%clk 0:01:09.2]} 42... Bd8 {[%clk 0:00:01.9]} 43. Bxd4 {[%clk
0:01:09.3]} 43... f6 {[%clk 0:00:02.1]} 44. b5+ {[%clk 0:01:06.5]} 44... Kb7
{[%clk 0:00:02.7]} 45. Bc5 {[%clk 0:01:04.1]} 1-0

[Event "*** SCC Grand Prix: Titled Tuesday Blitz"]
[Site "Chess.com"]
[Date "2020.10.06"]
[Round "5"]
[White "nochewycandy"]
[Black "BeanScreen"]
[Result "0-1"]
[WhiteElo "2490"]
[BlackElo "2671"]
[TimeControl "180+1"]
[EndTime "10:56:36 PDT"]
[Termination "BeanScreen won by resignation"]

1. e4 {[%clk 0:03:00.9]} 1... e5 {[%clk 0:02:59.8]} 2. Nc3 {[%clk 0:03:00.5]}
2... Nc6 {[%clk 0:03:00.7]} 3. Bc4 {[%clk 0:03:00.3]} 3... Nf6 {[%clk 0:03:01]}
4. d3 {[%clk 0:03:00.7]} 4... Na5 {[%clk 0:03:01.4]} 5. Nge2 {[%clk 0:02:59.7]}
5... Bc5 {[%clk 0:03:00.3]} 6. O-O {[%clk 0:02:53.2]} 6... O-O {[%clk
0:02:59.5]} 7. a3 {[%clk 0:02:53.1]} 7... Nxc4 {[%clk 0:02:58.4]} 8. dxc4 {[%clk
0:02:54]} 8... d6 {[%clk 0:02:58.9]} 9. h3 {[%clk 0:02:51.7]} 9... Be6 {[%clk
0:02:55.4]} 10. b3 {[%clk 0:02:49.8]} 10... a5 {[%clk 0:02:54.9]} 11. Qd3 {[%clk
0:02:48]} 11... Nd7 {[%clk 0:02:54.1]} 12. Kh1 {[%clk 0:02:43]} 12... c6 {[%clk
0:02:51.2]} 13. Be3 {[%clk 0:02:31.7]} 13... f5 {[%clk 0:02:50.7]} 14. f4 {[%clk
0:02:26.7]} 14... Kh8 {[%clk 0:02:33.2]} 15. Bxc5 {[%clk 0:01:56.4]} 15... Nxc5
{[%clk 0:02:33.2]} 16. Qe3 {[%clk 0:01:56.6]} 16... Nxe4 {[%clk 0:02:22.8]} 17.
Nxe4 {[%clk 0:01:54.4]} 17... fxe4 {[%clk 0:02:23.7]} 18. fxe5 {[%clk
0:01:54.9]} 18... d5 {[%clk 0:02:19.6]} 19. cxd5 {[%clk 0:01:44.6]} 19... Qxd5
{[%clk 0:02:11.5]} 20. Qd4 {[%clk 0:01:21.3]} 20... Kg8 {[%clk 0:01:56.1]} 21.
c4 {[%clk 0:01:15.2]} 21... Qxd4 {[%clk 0:01:49]} 22. Nxd4 {[%clk 0:01:16.1]}
22... Bf7 {[%clk 0:01:36.1]} 23. e6 {[%clk 0:01:14.3]} 23... Bg6 {[%clk
0:01:36]} 24. b4 {[%clk 0:01:08.7]} 24... Rxf1+ {[%clk 0:01:31.4]} 25. Rxf1
{[%clk 0:01:08]} 25... axb4 {[%clk 0:01:31.5]} 26. axb4 {[%clk 0:01:08.9]} 26...
Rd8 {[%clk 0:01:23.9]} 27. Nb3 {[%clk 0:01:08.7]} 27... e3 {[%clk 0:01:16.5]}
28. Re1 {[%clk 0:01:05.4]} 28... Rd3 {[%clk 0:01:02.4]} 29. Nc5 {[%clk 0:01:05]}
29... Rc3 {[%clk 0:01:01.2]} 30. Nxb7 {[%clk 0:01:00.1]} 30... Kf8 {[%clk
0:00:53.5]} 31. Nd8 {[%clk 0:00:35.2]} 31... Rxc4 {[%clk 0:00:50]} 32. Rxe3
{[%clk 0:00:32.8]} 32... Ke7 {[%clk 0:00:49]} 33. Nb7 {[%clk 0:00:25.6]} 33...
Rxb4 {[%clk 0:00:45.5]} 34. Nc5 {[%clk 0:00:25.4]} 34... Rc4 {[%clk 0:00:45.2]}
35. Nb3 {[%clk 0:00:20.5]} 35... Re4 {[%clk 0:00:44.9]} 36. Rc3 {[%clk
0:00:19.7]} 36... Rxe6 {[%clk 0:00:44.9]} 37. Nd4 {[%clk 0:00:20.2]} 37... Re1+
{[%clk 0:00:42.3]} 38. Kh2 {[%clk 0:00:19.3]} 38... Be4 {[%clk 0:00:41.5]} 39.
Nxc6+ {[%clk 0:00:19]} 39... Kf6 {[%clk 0:00:40.3]} 40. Nd4 {[%clk 0:00:19.1]}
40... Rd1 {[%clk 0:00:40.4]} 41. Rc4 {[%clk 0:00:19.2]} 41... Rd2 {[%clk
0:00:39.9]} 42. Rb4 {[%clk 0:00:19.4]} 42... Rxg2+ {[%clk 0:00:40]} 0-1

[Event "*** SCC Grand Prix: Titled Tuesday Blitz"]
[Site "Chess.com"]
[Date "2020.10.06"]
[Round "5"]
[White "boasovietica"]
[Black "novocane"]
[Result "1-0"]
[WhiteElo "2457"]
[BlackElo "2273"]
[TimeControl "180+1"]
[EndTime "10:56:36 PDT"]
[Termination "boasovietica won by checkmate"]

1. e4 {[%clk 0:03:00.9]} 1... c5 {[%clk 0:02:59.2]} 2. Nf3 {[%clk 0:03:00]} 2...
Nc6 {[%clk 0:02:59.4]} 3. Nc3 {[%clk 0:02:59.1]} 3... e5 {[%clk 0:02:59.2]} 4.
Bc4 {[%clk 0:02:58.3]} 4... Be7 {[%clk 0:02:58.7]} 5. d3 {[%clk 0:02:51.4]} 5...
d6 {[%clk 0:02:58.5]} 6. Nd2 {[%clk 0:02:51.1]} 6... Bg5 {[%clk 0:02:58.5]} 7.
Nf1 {[%clk 0:02:51]} 7... Bxc1 {[%clk 0:02:58.3]} 8. Rxc1 {[%clk 0:02:47.5]}
8... Nf6 {[%clk 0:02:57.9]} 9. Ne3 {[%clk 0:02:45.2]} 9... O-O {[%clk
0:02:57.6]} 10. O-O {[%clk 0:02:44.4]} 10... a6 {[%clk 0:02:57.8]} 11. a4 {[%clk
0:02:43.6]} 11... Be6 {[%clk 0:02:56.3]} 12. Ncd5 {[%clk 0:02:38.2]} 12... Rb8
{[%clk 0:02:48.2]} 13. f4 {[%clk 0:02:08.2]} 13... b5 {[%clk 0:02:41.3]} 14.
axb5 {[%clk 0:01:54.1]} 14... axb5 {[%clk 0:02:41.2]} 15. Ba2 {[%clk 0:01:54.1]}
15... exf4 {[%clk 0:02:24.4]} 16. Rxf4 {[%clk 0:01:52.2]} 16... Bxd5 {[%clk
0:02:17]} 17. Nxd5 {[%clk 0:01:48.4]} 17... Nxd5 {[%clk 0:02:08.4]} 18. Bxd5
{[%clk 0:01:49.3]} 18... Ne7 {[%clk 0:02:00.4]} 19. Bb3 {[%clk 0:01:36.9]} 19...
d5 {[%clk 0:01:53.7]} 20. exd5 {[%clk 0:01:31.9]} 20... Nxd5 {[%clk 0:01:53.6]}
21. Rf2 {[%clk 0:01:20.5]} 21... Ne3 {[%clk 0:01:24.1]} 22. Qf3 {[%clk
0:01:00.1]} 22... Qd4 {[%clk 0:01:07.2]} 23. Bxf7+ {[%clk 0:00:27.6]} 23... Kh8
{[%clk 0:01:07.2]} 24. c3 {[%clk 0:00:26.9]} 24... Qxd3 {[%clk 0:01:04.1]} 25.
Re1 {[%clk 0:00:25.5]} 25... Rbe8 {[%clk 0:00:53.7]} 26. Bxe8 {[%clk 0:00:21.7]}
26... Rxf3 {[%clk 0:00:51.7]} 27. Rxf3 {[%clk 0:00:21.1]} 27... g5 {[%clk
0:00:39]} 28. Rfxe3 {[%clk 0:00:19.9]} 28... Qd2 {[%clk 0:00:39.4]} 29. Bxb5
{[%clk 0:00:17.9]} 29... Qxb2 {[%clk 0:00:39.2]} 30. Bc4 {[%clk 0:00:14]} 30...
Qd2 {[%clk 0:00:36.9]} 31. h3 {[%clk 0:00:12.5]} 31... Kg7 {[%clk 0:00:36.5]}
32. Re7+ {[%clk 0:00:12]} 32... Kg6 {[%clk 0:00:35.9]} 33. R1e6+ {[%clk
0:00:11.8]} 33... Kf5 {[%clk 0:00:35.7]} 34. Rf7# {[%clk 0:00:11.7]} 1-0

[Event "*** SCC Grand Prix: Titled Tuesday Blitz"]
[Site "Chess.com"]
[Date "2020.10.06"]
[Round "5"]
[White "VitaliyBernadskiy"]
[Black "remi04"]
[Result "1-0"]
[WhiteElo "2737"]
[BlackElo "2554"]
[TimeControl "180+1"]
[EndTime "10:56:40 PDT"]
[Termination "VitaliyBernadskiy won by resignation"]

1. e4 {[%clk 0:03:00.9]} 1... c5 {[%clk 0:02:59.8]} 2. Nf3 {[%clk 0:02:58.5]}
2... d6 {[%clk 0:03:00.1]} 3. Nc3 {[%clk 0:02:57.3]} 3... e6 {[%clk 0:02:51.8]}
4. g3 {[%clk 0:02:55.3]} 4... Nc6 {[%clk 0:02:49.2]} 5. Bg2 {[%clk 0:02:55.7]}
5... Nf6 {[%clk 0:02:37.7]} 6. O-O {[%clk 0:02:54.8]} 6... Be7 {[%clk
0:02:36.9]} 7. d4 {[%clk 0:02:53.2]} 7... cxd4 {[%clk 0:02:35.4]} 8. Nxd4 {[%clk
0:02:54.1]} 8... Nxd4 {[%clk 0:02:26.5]} 9. Qxd4 {[%clk 0:02:53.3]} 9... O-O
{[%clk 0:02:27.4]} 10. e5 {[%clk 0:02:47.4]} 10... dxe5 {[%clk 0:02:26.3]} 11.
Qxe5 {[%clk 0:02:48.3]} 11... Bd6 {[%clk 0:02:18.3]} 12. Qe2 {[%clk 0:02:46.3]}
12... a6 {[%clk 0:02:17.8]} 13. Rd1 {[%clk 0:02:45.1]} 13... Qc7 {[%clk
0:02:13.1]} 14. Bg5 {[%clk 0:02:41.9]} 14... Be7 {[%clk 0:02:09.5]} 15. Bf4
{[%clk 0:02:39.1]} 15... Qb6 {[%clk 0:02:07.7]} 16. Be5 {[%clk 0:02:34.5]} 16...
Nd7 {[%clk 0:02:03]} 17. Bd4 {[%clk 0:02:34.4]} 17... Qa5 {[%clk 0:01:57.1]} 18.
Nd5 {[%clk 0:02:27.8]} 18... Bc5 {[%clk 0:01:46.3]} 19. Bc3 {[%clk 0:02:03.2]}
19... Qd8 {[%clk 0:01:31.5]} 20. Qg4 {[%clk 0:01:55.6]} 20... e5 {[%clk
0:01:29]} 21. Qh5 {[%clk 0:01:44.3]} 21... g6 {[%clk 0:01:11.5]} 22. Qh6 {[%clk
0:01:43.4]} 22... Re8 {[%clk 0:01:08.7]} 23. Rd2 {[%clk 0:01:27.4]} 23... Bf8
{[%clk 0:01:05.6]} 24. Qe3 {[%clk 0:01:27]} 24... h6 {[%clk 0:01:00.4]} 25. Rad1
{[%clk 0:01:26.9]} 25... Bg7 {[%clk 0:00:52.3]} 26. h4 {[%clk 0:01:25.2]} 26...
h5 {[%clk 0:00:40.4]} 27. Bh3 {[%clk 0:01:24.5]} 27... Kh8 {[%clk 0:00:07.7]}
28. Bxd7 {[%clk 0:01:19.5]} 28... Qxd7 {[%clk 0:00:07.4]} 29. Nb6 {[%clk
0:01:16.6]} 29... Qh3 {[%clk 0:00:07.1]} 30. Nxa8 {[%clk 0:01:10.7]} 30... Bg4
{[%clk 0:00:06.5]} 31. Rd8 {[%clk 0:01:10.4]} 31... Rxd8 {[%clk 0:00:04.2]} 32.
Rxd8+ {[%clk 0:01:11.3]} 32... Kh7 {[%clk 0:00:05.1]} 33. Bxe5 {[%clk
0:01:08.2]} 33... f6 {[%clk 0:00:03.2]} 34. Bc3 {[%clk 0:00:56.8]} 34... Bd7
{[%clk 0:00:03.3]} 35. Nb6 {[%clk 0:00:51.3]} 35... Bc6 {[%clk 0:00:03.5]} 36.
Nd5 {[%clk 0:00:51.7]} 36... Qf5 {[%clk 0:00:03.7]} 37. Ne7 {[%clk 0:00:45.2]}
37... Qh3 {[%clk 0:00:03]} 38. Nxc6 {[%clk 0:00:45.1]} 1-0

[Event "*** SCC Grand Prix: Titled Tuesday Blitz"]
[Site "Chess.com"]
[Date "2020.10.06"]
[Round "5"]
[White "rasmussvane"]
[Black "Moultino06"]
[Result "1-0"]
[WhiteElo "2906"]
[BlackElo "2653"]
[TimeControl "180+1"]
[EndTime "10:56:44 PDT"]
[Termination "rasmussvane won by resignation"]

1. Nf3 {[%clk 0:03:00.9]} 1... Nc6 {[%clk 0:02:58.6]} 2. d4 {[%clk 0:03:01]}
2... d6 {[%clk 0:02:58.7]} 3. e4 {[%clk 0:03:00.6]} 3... g6 {[%clk 0:02:56.9]}
4. d5 {[%clk 0:02:59.1]} 4... Ne5 {[%clk 0:02:54.6]} 5. Nxe5 {[%clk 0:02:58.4]}
5... dxe5 {[%clk 0:02:55.5]} 6. Bb5+ {[%clk 0:02:56.9]} 6... Bd7 {[%clk
0:02:54.5]} 7. Bxd7+ {[%clk 0:02:57.8]} 7... Qxd7 {[%clk 0:02:55.4]} 8. Nc3
{[%clk 0:02:58.3]} 8... Bg7 {[%clk 0:02:51.2]} 9. O-O {[%clk 0:02:57.9]} 9...
Nf6 {[%clk 0:02:44.3]} 10. f4 {[%clk 0:02:57.7]} 10... exf4 {[%clk 0:02:42.3]}
11. Bxf4 {[%clk 0:02:58.6]} 11... O-O {[%clk 0:02:41.4]} 12. Qe2 {[%clk
0:02:55.6]} 12... e6 {[%clk 0:02:37.5]} 13. Be5 {[%clk 0:02:41.8]} 13... Nh5
{[%clk 0:02:26.6]} 14. Bxg7 {[%clk 0:02:39.8]} 14... Nxg7 {[%clk 0:02:26.2]} 15.
Rad1 {[%clk 0:02:38.4]} 15... Rad8 {[%clk 0:02:16.4]} 16. e5 {[%clk 0:02:35.4]}
16... exd5 {[%clk 0:02:12.3]} 17. Nxd5 {[%clk 0:02:36.3]} 17... Qe6 {[%clk
0:02:04]} 18. Rf6 {[%clk 0:01:54.9]} 18... Qe8 {[%clk 0:01:53]} 19. Rf3 {[%clk
0:01:45.8]} 19... Qe6 {[%clk 0:01:29.1]} 20. Rf6 {[%clk 0:00:45.1]} 20... Qe8
{[%clk 0:01:26.8]} 21. Rf3 {[%clk 0:00:34]} 21... Qe6 {[%clk 0:00:52.4]} 22.
Nf6+ {[%clk 0:00:33.7]} 22... Kh8 {[%clk 0:00:52.3]} 23. Rdf1 {[%clk 0:00:25.7]}
23... Qb6+ {[%clk 0:00:29.1]} 24. Kh1 {[%clk 0:00:25.5]} 24... Ne6 {[%clk
0:00:11.2]} 25. Rh3 {[%clk 0:00:22.7]} 25... Ng5 {[%clk 0:00:11]} 26. Rh4 {[%clk
0:00:19.9]} 26... Qxb2 {[%clk 0:00:06.7]} 27. Qe3 {[%clk 0:00:16.1]} 27... Qb5
{[%clk 0:00:07]} 28. c4 {[%clk 0:00:15.5]} 28... Qa4 {[%clk 0:00:03.5]} 29. Qxg5
{[%clk 0:00:14.8]} 1-0

[Event "*** SCC Grand Prix: Titled Tuesday Blitz"]
[Site "Chess.com"]
[Date "2020.10.06"]
[Round "5"]
[White "tdf98pantani"]
[Black "Artyom_ChessMate"]
[Result "1-0"]
[WhiteElo "2722"]
[BlackElo "2511"]
[TimeControl "180+1"]
[EndTime "10:56:45 PDT"]
[Termination "tdf98pantani won on time"]

1. e4 {[%clk 0:03:00.9]} 1... e5 {[%clk 0:02:57.4]} 2. Nf3 {[%clk 0:03:01]} 2...
Nc6 {[%clk 0:02:56.8]} 3. Bc4 {[%clk 0:03:01.1]} 3... Bc5 {[%clk 0:02:53.9]} 4.
c3 {[%clk 0:03:01.2]} 4... Nf6 {[%clk 0:02:52.3]} 5. d3 {[%clk 0:03:01.4]} 5...
d6 {[%clk 0:02:52.2]} 6. O-O {[%clk 0:03:00.7]} 6... h6 {[%clk 0:02:52.7]} 7. a4
{[%clk 0:03:00.8]} 7... a5 {[%clk 0:02:52.2]} 8. Nbd2 {[%clk 0:02:58.5]} 8...
O-O {[%clk 0:02:52.2]} 9. Re1 {[%clk 0:02:58.6]} 9... Bb6 {[%clk 0:02:51.6]} 10.
Nf1 {[%clk 0:02:56.3]} 10... Re8 {[%clk 0:02:52.5]} 11. Ng3 {[%clk 0:02:56]}
11... Be6 {[%clk 0:02:51.4]} 12. Bb5 {[%clk 0:02:53.1]} 12... Qb8 {[%clk
0:02:24.4]} 13. h3 {[%clk 0:02:51.9]} 13... Qa7 {[%clk 0:02:22.3]} 14. Re2
{[%clk 0:02:33.7]} 14... Bd7 {[%clk 0:02:15.6]} 15. Nh4 {[%clk 0:02:33.1]} 15...
d5 {[%clk 0:02:06]} 16. Nhf5 {[%clk 0:02:30.8]} 16... dxe4 {[%clk 0:02:03.3]}
17. dxe4 {[%clk 0:02:30.7]} 17... Rad8 {[%clk 0:02:01.5]} 18. Bd2 {[%clk
0:02:04.6]} 18... Bxf5 {[%clk 0:01:50.4]} 19. Nxf5 {[%clk 0:02:04.3]} 19...
Bxf2+ {[%clk 0:01:50]} 20. Kh2 {[%clk 0:01:46.6]} 20... Kh7 {[%clk 0:01:31.8]}
21. Qf1 {[%clk 0:01:45.4]} 21... Nxe4 {[%clk 0:01:23.3]} 22. Bxh6 {[%clk
0:01:31]} 22... gxh6 {[%clk 0:01:13.6]} 23. Rxe4 {[%clk 0:01:30.9]} 23... Rd2
{[%clk 0:01:07.6]} 24. Qc4 {[%clk 0:01:22.8]} 24... Re6 {[%clk 0:00:52.4]} 25.
Rg4 {[%clk 0:01:21.1]} 25... Qc5 {[%clk 0:00:43.3]} 26. Qe4 {[%clk 0:01:14.2]}
26... Kh8 {[%clk 0:00:38.3]} 27. Rf1 {[%clk 0:01:03.9]} 27... Rg6 {[%clk
0:00:32]} 28. Rxg6 {[%clk 0:01:01]} 28... fxg6 {[%clk 0:00:32.2]} 29. Nxh6
{[%clk 0:01:01.5]} 29... Kg7 {[%clk 0:00:10]} 30. Ng4 {[%clk 0:01:00.2]} 30...
Rxb2 {[%clk 0:00:09.5]} 31. Qf3 {[%clk 0:00:55.5]} 31... e4 {[%clk 0:00:07.4]}
32. Qf6+ {[%clk 0:00:55.5]} 32... Kh7 {[%clk 0:00:07.5]} 33. Qf7+ {[%clk
0:00:54.9]} 33... Kh8 {[%clk 0:00:06.9]} 34. Nf6 {[%clk 0:00:39.1]} 34... Qe5+
{[%clk 0:00:05.5]} 35. Kh1 {[%clk 0:00:39.5]} 1-0

[Event "*** SCC Grand Prix: Titled Tuesday Blitz"]
[Site "Chess.com"]
[Date "2020.10.06"]
[Round "5"]
[White "Matveev_Vladimir"]
[Black "Durarbayli"]
[Result "0-1"]
[WhiteElo "2617"]
[BlackElo "2807"]
[TimeControl "180+1"]
[EndTime "10:56:46 PDT"]
[Termination "Durarbayli won by resignation"]

1. d4 {[%clk 0:03:00.9]} 1... Nf6 {[%clk 0:02:44.5]} 2. c4 {[%clk 0:02:58.9]}
2... e6 {[%clk 0:02:44.4]} 3. Nf3 {[%clk 0:02:58]} 3... b6 {[%clk 0:02:44.6]} 4.
a3 {[%clk 0:02:57.6]} 4... Ba6 {[%clk 0:02:43.1]} 5. Qc2 {[%clk 0:02:57.5]} 5...
Bb7 {[%clk 0:02:42.9]} 6. Nc3 {[%clk 0:02:55.3]} 6... c5 {[%clk 0:02:42.9]} 7.
dxc5 {[%clk 0:02:54]} 7... Bxc5 {[%clk 0:02:36.3]} 8. Bg5 {[%clk 0:02:53.6]}
8... h6 {[%clk 0:02:21.9]} 9. Bh4 {[%clk 0:02:51.9]} 9... Be7 {[%clk 0:02:05.7]}
10. Rd1 {[%clk 0:02:39.5]} 10... O-O {[%clk 0:01:53]} 11. e3 {[%clk 0:02:26.7]}
11... d6 {[%clk 0:01:47.7]} 12. Be2 {[%clk 0:02:19.5]} 12... a6 {[%clk
0:01:45.6]} 13. O-O {[%clk 0:02:16.9]} 13... Qc7 {[%clk 0:01:45.3]} 14. Nd4
{[%clk 0:01:55.6]} 14... Nbd7 {[%clk 0:01:40.7]} 15. Rc1 {[%clk 0:01:50]} 15...
Rac8 {[%clk 0:01:40.4]} 16. Rfd1 {[%clk 0:01:48.9]} 16... Qb8 {[%clk 0:01:34.8]}
17. b4 {[%clk 0:01:38]} 17... Qa8 {[%clk 0:01:33.9]} 18. f3 {[%clk 0:01:32.2]}
18... d5 {[%clk 0:01:21.3]} 19. Qa2 {[%clk 0:01:10]} 19... Rfe8 {[%clk 0:00:52]}
20. cxd5 {[%clk 0:00:35.3]} 20... Nxd5 {[%clk 0:00:49.1]} 21. Bxe7 {[%clk
0:00:30.3]} 21... Nxc3 {[%clk 0:00:45.6]} 22. Rxc3 {[%clk 0:00:30.1]} 22... Rxc3
{[%clk 0:00:46.5]} 23. Bh4 {[%clk 0:00:16.8]} 23... Rxe3 {[%clk 0:00:41.4]} 24.
Bf2 {[%clk 0:00:16.2]} 24... Re5 {[%clk 0:00:37.1]} 25. Bf1 {[%clk 0:00:13.3]}
25... Nf6 {[%clk 0:00:33.4]} 26. Rc1 {[%clk 0:00:13.7]} 26... Rc8 {[%clk
0:00:30.5]} 27. Rxc8+ {[%clk 0:00:13]} 27... Qxc8 {[%clk 0:00:31.4]} 28. Ne2
{[%clk 0:00:12.7]} 28... Rd5 {[%clk 0:00:28.1]} 29. Qb3 {[%clk 0:00:11.6]} 29...
b5 {[%clk 0:00:26.4]} 30. Nf4 {[%clk 0:00:10.8]} 30... Rd2 {[%clk 0:00:22.1]}
31. Be3 {[%clk 0:00:10.5]} 31... Qc2 {[%clk 0:00:20.6]} 0-1

[Event "*** SCC Grand Prix: Titled Tuesday Blitz"]
[Site "Chess.com"]
[Date "2020.10.06"]
[Round "5"]
[White "Yashasd1995"]
[Black "denispopov"]
[Result "0-1"]
[WhiteElo "2594"]
[BlackElo "2005"]
[TimeControl "180+1"]
[EndTime "10:56:48 PDT"]
[Termination "denispopov won by resignation"]

1. b3 {[%clk 0:03:00.9]} 1... Nf6 {[%clk 0:02:55.9]} 2. Bb2 {[%clk 0:03:00.2]}
2... g6 {[%clk 0:02:56.4]} 3. Bxf6 {[%clk 0:03:00.4]} 3... exf6 {[%clk
0:02:57.3]} 4. c4 {[%clk 0:03:00.9]} 4... Bg7 {[%clk 0:02:58]} 5. Nc3 {[%clk
0:03:00.3]} 5... O-O {[%clk 0:02:57.9]} 6. g3 {[%clk 0:03:00.2]} 6... c6 {[%clk
0:02:55]} 7. Bg2 {[%clk 0:03:00.2]} 7... f5 {[%clk 0:02:49.4]} 8. Rc1 {[%clk
0:03:00.3]} 8... d6 {[%clk 0:02:43.9]} 9. e3 {[%clk 0:02:59.8]} 9... Nd7 {[%clk
0:02:42.7]} 10. d4 {[%clk 0:02:59.8]} 10... Nf6 {[%clk 0:02:41.8]} 11. Nf3
{[%clk 0:02:59.1]} 11... Re8 {[%clk 0:02:40.7]} 12. O-O {[%clk 0:02:59.1]} 12...
Ne4 {[%clk 0:02:38.9]} 13. b4 {[%clk 0:02:59.4]} 13... a6 {[%clk 0:02:33.7]} 14.
Qd3 {[%clk 0:02:57.9]} 14... Qe7 {[%clk 0:02:28.8]} 15. a4 {[%clk 0:02:53.5]}
15... Bd7 {[%clk 0:02:19.1]} 16. Rfe1 {[%clk 0:02:38.4]} 16... Bf6 {[%clk
0:02:14.7]} 17. Nd2 {[%clk 0:02:37.8]} 17... Nxc3 {[%clk 0:02:11.2]} 18. Rxc3
{[%clk 0:02:38.7]} 18... Kg7 {[%clk 0:01:59.2]} 19. Nb3 {[%clk 0:02:35.1]} 19...
Rad8 {[%clk 0:01:46.2]} 20. Rcc1 {[%clk 0:02:34.3]} 20... Bc8 {[%clk 0:01:45.9]}
21. b5 {[%clk 0:02:32]} 21... Qc7 {[%clk 0:01:42.9]} 22. h4 {[%clk 0:02:25]}
22... h6 {[%clk 0:01:39.6]} 23. Qd2 {[%clk 0:02:12.3]} 23... g5 {[%clk
0:01:38.1]} 24. hxg5 {[%clk 0:02:11.5]} 24... hxg5 {[%clk 0:01:35]} 25. Qa5
{[%clk 0:02:12.4]} 25... b6 {[%clk 0:01:22.9]} 26. Qd2 {[%clk 0:02:06.7]} 26...
c5 {[%clk 0:01:18.5]} 27. Bc6 {[%clk 0:02:06.3]} 27... Rh8 {[%clk 0:01:16]} 28.
Kg2 {[%clk 0:02:04.8]} 28... Bb7 {[%clk 0:01:13.7]} 29. d5 {[%clk 0:02:05.1]}
29... Bc8 {[%clk 0:01:12.6]} 30. a5 {[%clk 0:01:58.7]} 30... Rh6 {[%clk
0:01:04.8]} 31. Rh1 {[%clk 0:01:57.8]} 31... Rdh8 {[%clk 0:01:04.3]} 32. Rxh6
{[%clk 0:01:57.3]} 32... Rxh6 {[%clk 0:01:05.2]} 33. axb6 {[%clk 0:01:51.3]}
33... Qxb6 {[%clk 0:01:03.4]} 34. Qa5 {[%clk 0:01:50.4]} 34... Qa7 {[%clk
0:00:47]} 35. b6 {[%clk 0:01:45.6]} 35... Qe7 {[%clk 0:00:45.4]} 36. Nd2 {[%clk
0:01:27.5]} 36... f4 {[%clk 0:00:43.6]} 37. exf4 {[%clk 0:01:25.8]} 37... gxf4
{[%clk 0:00:42.3]} 38. Qa3 {[%clk 0:01:24.8]} 38... Bd4 {[%clk 0:00:38.5]} 39.
Qf3 {[%clk 0:01:19.2]} 39... fxg3 {[%clk 0:00:37.8]} 40. Ne4 {[%clk 0:00:55.1]}
40... Bh3+ {[%clk 0:00:34.9]} 41. Kg1 {[%clk 0:00:53.7]} 41... gxf2+ {[%clk
0:00:34.1]} 42. Nxf2 {[%clk 0:00:54]} 42... Qg5+ {[%clk 0:00:31.9]} 43. Kh2
{[%clk 0:00:46.6]} 43... Bc8+ {[%clk 0:00:24.1]} 44. Nh3 {[%clk 0:00:43.3]}
44... Rxh3+ {[%clk 0:00:22.3]} 45. Qxh3 {[%clk 0:00:44.2]} 45... Bxh3 {[%clk
0:00:18.1]} 46. Kxh3 {[%clk 0:00:45.1]} 46... Qxc1 {[%clk 0:00:16.7]} 0-1